Workbook

Sheet 申込書
B1: 折 込 申 込 書 | H1: 注意 ： このシートは削除しないでください。
B3: ※ | D3: 部分のみ入力してください。
H4: ≪下記市区名をクリックしますと、該当ページへジャンプします。≫
C5: 扱い(依頼)会社 | H5: 岡山市北区A | I5: 備前市
B6: 依頼会社 | C6: 担当者(申込者) | H6: 岡山市北区B | I6: 和気郡
C7: 住所 | H7: 岡山市中区 | I7: 赤磐市
C8: 電話番号 | H8: 岡山市東区 | I8: 瀬戸内市
C9: ＦＡＸ 番号 | H9: 岡山市南区 | I9: 笠岡市
C10: 印刷(納品)会社 | H10: 玉野市（香川県香川郡直島町含む） | I10: 井原市
H11: 倉敷市(倉敷) | I11: 浅口市
B12: 広告主 | F12: =D12 & " " & D13 ->  | H12: 倉敷市(水島) | I12: 小田郡
B13: 広告件名(タイトル) | H13: 倉敷市（玉島） | I13: 総社市
B14: 折込日 | H14: 倉敷市（児島） | I14: 高梁市
B15: サイズ | I15: 加賀郡
B16: 全地域指定 （個別の販売店へ入力した場合は適用されません） | I16: 新見市
I17: 真庭市
B18: 案件番号 | D18: A202608改定 | I18: 津山市
B19: 受付担当 | D19: 040001 | E19: =IF(D19="","",VLOOKUP(D19,$B$38:$C$65,2,FALSE)) -> 岡 秀和 | I19: 苫田郡
I20: 勝田郡
I21: 美作市
I22: 久米郡
B37: BSYAIN_CD | C37: 作成者名
B38: 040001 | C38: 岡 秀和
B39: 040002 | C39: AAA
B40: 040003 | C40: AAA
B41: 040004 | C41: AAA
B42: 040005 | C42: AAA
B43: 040007 | C43: AAA
B44: 040008 | C44: AAA
B45: 040010 | C45: 下山 篤志
B46: 040011 | C46: BBB
B47: 040012 | C47: AAA
B48: 040013 | C48: AAA
B49: 040014 | C49: AAA
B50: 040015 | C50: 和氣 加代子
B51: 040016 | C51: AAA
B52: 040023 | C52: AAA
B53: 040030 | C53: AAA
B54: 040031 | C54: 千田 敏
B55: 040032 | C55: AAA
B56: 040033 | C56: AAA
B57: 040034 | C57: 興梠 真理香
B58: 040035 | C58: 山本 武司
B59: 040036 | C59: AAA
B60: 040037 | C60: AAA
B61: 040038 | C61: AAA
B62: 040039 | C62: AAA
B63: 040040 | C63: AAA
B64: 040041 | C64: AAA
B65: 040042 | C65: AAA

Sheet 基本・配布部数合計
A1: 岡山県 新聞オリコミ広告 部数明細表 | W1: 90円 | X1: 390円
W2: 本紙 | X2: 本紙
A3: 広 告 名 | I3: 折込日 | L3: サイズ | N3: 部数 | Q3: 配送管理料 (税抜) | W3: AM | X3: AN
A4: =IF(T37=0,"",申込書!F12) ->  | I4: =IF(T37=0,"",申込書!D14) ->  | L4: =IF(T37=0,"",申込書!D15) ->  | N4: =IF(T37=0,"枚",T37) -> 枚 | Q4: =IF(W6=0,"",W6) ->  | S4: =SUM(W6*200,X6*460) -> 0
Q5: =IF(X6=0,"",X6) -> 
A6: 市 区 | C6: m01 朝 日 | E6: m02 毎 日 | G6: m03 読 売 | I6: m59 山 陽 | K6: m04 日 経 | M6: m05 産 経 | O6: m60 中 国 | Q6: m63 四 国 | S6: 総 計 | W6: =SUM(W8:W37) -> 0 | X6: =SUM(X8:X37) -> 0
C7: 基本部数 | D7: 配布部数 | E7: 基本部数 | F7: 配布部数 | G7: 基本部数 | H7: 配布部数 | I7: 基本部数 | J7: 配布部数 | K7: 基本部数 | L7: 配布部数 | M7: 基本部数 | N7: 配布部数 | O7: 基本部数 | P7: 配布部数 | Q7: 基本部数 | R7: 配布部数 | S7: 基本部数 | T7: 配布部数
A8: 33101 | B8: 岡山市北区A | C8: 7650 | D8: =IF(ISERROR(V8),"",明細表!H26) -> 0 | E8: 2750 | F8: =IF(ISERROR(V8),"",明細表!O26) -> 0 | G8: 3200 | H8: =IF(ISERROR(V8),"",明細表!V26) -> 0 | I8: 20300 | J8: =IF(ISERROR(V8),"",明細表!AC26) -> 0 | K8: 3300 | L8: =IF(ISERROR(V8),"",明細表!AJ26) -> 0 | O8: 250 | P8: =IF(ISERROR(V8),"",明細表!AQ39) -> 0 | S8: =SUM(C8,E8,G8,K8,I8,M8,O8,Q8) -> 37450 | T8: =SUM(D8,F8,H8,L8,J8,N8,P8,R8) -> 0 | V8: =明細表!AP41 -> 0 | W8: =IF(ISERROR(V8),"",明細表!AT41) -> 0 | BM8: =IF(ISERROR(V8),"",#REF!) ->  | BN8: =IF(ISERROR(V8),"",#REF!) -> 
A9: 33101 | B9: 岡山市北区B | C9: 2850 | D9: =IF(ISERROR(V9),"",明細表!H65) -> 0 | G9: 2200 | H9: =IF(ISERROR(V9),"",明細表!V65) -> 0 | I9: 16400 | J9: =IF(ISERROR(V9),"",明細表!AC65) -> 0 | K9: 700 | L9: =IF(ISERROR(V9),"",明細表!AJ65) -> 0 | S9: =SUM(C9,E9,G9,K9,I9,M9,O9,Q9) -> 22150 | T9: =SUM(D9,F9,H9,L9,J9,N9,P9,R9) -> 0 | V9: =明細表!AP83 -> 0 | X9: =IF(ISERROR(V9),"",明細表!AU83) -> 0 | BM9: =IF(ISERROR(V9),"",#REF!) -> 
A10: 33102 | B10: 岡山市中区 | C10: 4400 | D10: =IF(ISERROR(V10),"",明細表!H105) -> 0 | G10: 4650 | H10: =IF(ISERROR(V10),"",明細表!V105) -> 0 | I10: 18050 | J10: =IF(ISERROR(V10),"",明細表!AC105) -> 0 | K10: 1400 | L10: =IF(ISERROR(V10),"",明細表!AJ105) -> 0 | S10: 28500 | T10: 0 | V10: =明細表!AP125 -> 0 | W10: =IF(ISERROR(V10),"",明細表!AT105) -> 0 | X10: =IF(ISERROR(V10),"",明細表!AU105) -> 0 | BM10: =IF(ISERROR(V10),"",#REF!) -> 
A11: 33102 | B11: 岡山市東区 | C11: 1300 | D11: =IF(ISERROR(V11),"",明細表!H120) -> 0 | G11: 2000 | H11: =IF(ISERROR(V11),"",明細表!V120) -> 0 | I11: 13100 | J11: =IF(ISERROR(V11),"",明細表!AC120) -> 0 | K11: 400 | L11: =IF(ISERROR(V11),"",明細表!AJ120) -> 0 | S11: 16800 | T11: 0 | V11: =明細表!AP125 -> 0 | X11: =IF(ISERROR(V11),"",明細表!AU120) -> 0 | BM11: =IF(ISERROR(V11),"",#REF!) -> 
A12: 33102 | B12: 岡山市南区 | C12: 4400 | D12: =IF(ISERROR(V12),"",明細表!H149) -> 0 | E12: 1500 | F12: =IF(ISERROR(V12),"",明細表!O149) -> 0 | G12: 2300 | H12: =IF(ISERROR(V12),"",明細表!V149) -> 0 | I12: 19650 | J12: =IF(ISERROR(V12),"",明細表!AC149) -> 0 | K12: 1350 | L12: =IF(ISERROR(V12),"",明細表!AJ149) -> 0 | S12: 29200 | T12: 0 | V12: =明細表!AP167 -> 0 | W12: =IF(ISERROR(V12),"",明細表!AT149) -> 0 | X12: =IF(ISERROR(V12),"",明細表!AU149) -> 0 | BM12: =IF(ISERROR(V12),"",#REF!) -> 
A13: 33204 | B13: 玉野市(直島含む) | C13: 2100 | D13: =IF(ISERROR(V13),"",明細表!H186) -> 0 | I13: 8900 | J13: =IF(ISERROR(V13),"",明細表!AC186) -> 0 | K13: 450 | L13: =IF(ISERROR(V13),"",明細表!AJ186) -> 0 | Q13: 500 | R13: =IF(ISERROR(V13),"",明細表!AQ193) -> 0 | S13: 11950 | T13: 0 | V13: =明細表!AP209 -> 0 | X13: =IF(ISERROR(V13),"",明細表!AU193) -> 0 | BM13: =IF(ISERROR(V13),"",#REF!) -> 
A14: 33202 | B14: 倉敷市（倉敷） | C14: 3450 | D14: =IF(ISERROR(V14),"",明細表!H241) -> 0 | E14: 200 | F14: =IF(ISERROR(V14),"",明細表!O241) -> 0 | G14: 8400 | H14: =IF(ISERROR(V14),"",明細表!V241) -> 0 | I14: 26900 | J14: =IF(ISERROR(V14),"",明細表!AC241) -> 0 | K14: 2000 | L14: =IF(ISERROR(V14),"",明細表!AJ241) -> 0 | S14: 40950 | T14: 0 | V14: =明細表!AP251 -> 0 | W14: =IF(ISERROR(V14),"",明細表!AT248) -> 0 | X14: =IF(ISERROR(V14),"",明細表!AU248) -> 0 | BM14: =IF(ISERROR(V14),"",#REF!) ->  | BN14: =IF(ISERROR(V14),"",#REF!) -> 
A15: 33202 | B15: 倉敷市（水島） | C15: 900 | D15: =IF(ISERROR(V15),"",明細表!H268) -> 0 | G15: 3000 | H15: =IF(ISERROR(V15),"",明細表!V268) -> 0 | I15: 8450 | J15: =IF(ISERROR(V15),"",明細表!AC268) -> 0 | K15: 750 | L15: =IF(ISERROR(V15),"",明細表!AJ268) -> 0 | S15: 13100 | T15: 0 | V15: =明細表!AP293 -> 0 | X15: =IF(ISERROR(V15),"",明細表!AU277) -> 0 | BM15: =IF(ISERROR(V15),"",#REF!) ->  | BN15: =IF(ISERROR(V15),"",#REF!) -> 
A16: 33202 | B16: 倉敷市（玉島） | C16: 850 | D16: =IF(ISERROR(V16),"",明細表!H311) -> 0 | G16: 3100 | H16: =IF(ISERROR(V16),"",明細表!V311) -> 0 | I16: 10950 | J16: =IF(ISERROR(V16),"",明細表!AC311) -> 0 | K16: 550 | L16: =IF(ISERROR(V16),"",明細表!AJ311) -> 0 | S16: 15450 | T16: 0 | V16: =明細表!AP335 -> 0 | X16: =IF(ISERROR(V16),"",明細表!AU311) -> 0 | BM16: =IF(ISERROR(V16),"",#REF!) -> 
A17: 33202 | B17: 倉敷市（児島） | C17: 650 | D17: =IF(ISERROR(V17),"",明細表!H331) -> 0 | G17: 2200 | H17: =IF(ISERROR(V17),"",明細表!V331) -> 0 | I17: 6650 | J17: =IF(ISERROR(V17),"",明細表!AC331) -> 0 | K17: 300 | L17: =IF(ISERROR(V17),"",明細表!AJ331) -> 0 | S17: 9800 | T17: 0 | V17: =明細表!AP335 -> 0 | X17: =IF(ISERROR(V17),"",明細表!AU331) -> 0 | BM17: =IF(ISERROR(V17),"",#REF!) -> 
A18: 33211 | B18: 備前市 | G18: 700 | H18: =IF(ISERROR(V18),"",明細表!V353) -> 0 | I18: 5950 | J18: =IF(ISERROR(V18),"",明細表!AC353) -> 0 | K18: 250 | L18: =IF(ISERROR(V18),"",明細表!AJ353) -> 0 | S18: 6900 | T18: 0 | V18: =明細表!AP377 -> 0 | X18: =IF(ISERROR(V18),"",明細表!AU353) -> 0 | BM18: =IF(ISERROR(V18),"",#REF!) -> 
A19: 33340 | B19: 和気郡 | G19: 350 | H19: =IF(ISERROR(V19),"",明細表!V360) -> 0 | I19: 2600 | J19: =IF(ISERROR(V19),"",明細表!AC360) -> 0 | S19: 2950 | T19: 0 | V19: =明細表!AP377 -> 0 | X19: =IF(ISERROR(V19),"",明細表!AU360) -> 0 | BM19: =IF(ISERROR(V19),"",#REF!) -> 
A20: 33213 | B20: 赤磐市 | G20: 1650 | H20: =IF(ISERROR(V20),"",明細表!V371) -> 0 | I20: 7600 | J20: =IF(ISERROR(V20),"",明細表!AC371) -> 0 | K20: 150 | L20: =IF(ISERROR(V20),"",明細表!AJ371) -> 0 | S20: 9400 | T20: 0 | V20: =明細表!AP377 -> 0 | X20: =IF(ISERROR(V20),"",明細表!AU371) -> 0 | BM20: =IF(ISERROR(V20),"",#REF!) -> 
A21: 33212 | B21: 瀬戸内市 | G21: 900 | H21: =IF(ISERROR(V21),"",明細表!V390) -> 0 | I21: 5950 | J21: =IF(ISERROR(V21),"",明細表!AC390) -> 0 | S21: 6850 | T21: 0 | V21: =明細表!AP419 -> 0 | X21: =IF(ISERROR(V21),"",明細表!AU390) -> 0 | BM21: =IF(ISERROR(V21),"",#REF!) -> 
A22: 33205 | B22: 笠岡市 | E22: 100 | F22: =IF(ISERROR(V22),"",明細表!O404) -> 0 | G22: 1750 | H22: =IF(ISERROR(V22),"",明細表!V404) -> 0 | I22: 7750 | J22: =IF(ISERROR(V22),"",明細表!AC404) -> 0 | K22: 350 | L22: =IF(ISERROR(V22),"",明細表!AJ404) -> 0 | O22: 1400 | P22: =IF(ISERROR(V22),"",明細表!AQ411) -> 0 | S22: 11350 | T22: 0 | V22: =明細表!AP419 -> 0 | X22: =IF(ISERROR(V22),"",明細表!AU411) -> 0 | BM22: =IF(ISERROR(V22),"",#REF!) ->  | BN22: =IF(ISERROR(V22),"",#REF!) -> 
A23: 33207 | B23: 井原市 | G23: 1300 | H23: =IF(ISERROR(V23),"",明細表!V439) -> 0 | I23: 5550 | J23: =IF(ISERROR(V23),"",明細表!AC439) -> 0 | K23: 200 | L23: =IF(ISERROR(V23),"",明細表!AJ439) -> 0 | O23: 1450 | P23: =IF(ISERROR(V23),"",明細表!AQ446) -> 0 | S23: 8500 | T23: 0 | V23: =明細表!AP461 -> 0 | X23: =IF(ISERROR(V23),"",明細表!AU446) -> 0 | BM23: =IF(ISERROR(V23),"",#REF!) ->  | BN23: =IF(ISERROR(V23),"",#REF!) -> 
A24: 33216 | B24: 浅口市 | G24: 3500 | H24: =IF(ISERROR(V24),"",明細表!V478) -> 0 | I24: 5500 | J24: =IF(ISERROR(V24),"",明細表!AC478) -> 0 | K24: 250 | L24: =IF(ISERROR(V24),"",明細表!AJ478) -> 0 | S24: 9250 | T24: 0 | V24: =明細表!AP503 -> 0 | X24: =IF(ISERROR(V24),"",明細表!AU478) -> 0 | BM24: =IF(ISERROR(V24),"",#REF!) -> 
A25: 33460 | B25: 小田郡 | G25: 700 | H25: =IF(ISERROR(V25),"",明細表!V484) -> 0 | I25: 2400 | J25: =IF(ISERROR(V25),"",明細表!AC484) -> 0 | K25: 100 | L25: =IF(ISERROR(V25),"",明細表!AJ484) -> 0 | M25: 50 | N25: =IF(ISERROR(V25),"",明細表!AQ484) -> 0 | S25: 3250 | T25: 0 | V25: =明細表!AP503 -> 0 | X25: =IF(ISERROR(V25),"",明細表!AU484) -> 0 | BM25: =IF(ISERROR(V25),"",#REF!) -> 
A26: 33208 | B26: 総社市 | G26: 2000 | H26: =IF(ISERROR(V26),"",明細表!V494) -> 0 | I26: 10750 | J26: =IF(ISERROR(V26),"",明細表!AC494) -> 0 | S26: 12750 | T26: 0 | V26: =明細表!AP503 -> 0 | X26: =IF(ISERROR(V26),"",明細表!AU494) -> 0 | BM26: =IF(ISERROR(V26),"",#REF!) -> 
A27: 33209 | B27: 高梁市 | G27: 600 | H27: =IF(ISERROR(V27),"",明細表!V524) -> 0 | I27: 5550 | J27: =IF(ISERROR(V27),"",明細表!AC524) -> 0 | O27: 50 | P27: =IF(ISERROR(V27),"",明細表!AQ529) -> 0 | S27: 6200 | T27: 0 | V27: =明細表!AP545 -> 0 | X27: =IF(ISERROR(V27),"",明細表!AU529) -> 0 | BM27: =IF(ISERROR(V27),"",#REF!) ->  | BN27: =IF(ISERROR(V27),"",#REF!) -> 
A28: 33681 | B28: 加賀郡 | I28: 2000 | J28: =IF(ISERROR(V28),"",明細表!AC539) -> 0 | S28: 2000 | T28: 0 | V28: =明細表!AP545 -> 0 | X28: =IF(ISERROR(V28),"",明細表!AU539) -> 0 | BM28: =IF(ISERROR(V28),"",#REF!) -> 
A29: 33210 | B29: 新見市 | C29: 400 | D29: =IF(ISERROR(V29),"",明細表!H562) -> 0 | E29: 200 | F29: =IF(ISERROR(V29),"",明細表!O562) -> 0 | G29: 650 | H29: =IF(ISERROR(V29),"",明細表!V562) -> 0 | I29: 4850 | J29: =IF(ISERROR(V29),"",明細表!AC562) -> 0 | K29: 100 | L29: =IF(ISERROR(V29),"",明細表!AJ562) -> 0 | S29: 6200 | T29: 0 | V29: =明細表!AP587 -> 0 | X29: =IF(ISERROR(V29),"",明細表!AU562) -> 0 | BM29: =IF(ISERROR(V29),"",#REF!) -> 
A30: 33214 | B30: 真庭市 | C30: 400 | D30: =IF(ISERROR(V30),"",明細表!H581) -> 0 | E30: 350 | F30: =IF(ISERROR(V30),"",明細表!O581) -> 0 | G30: 1950 | H30: =IF(ISERROR(V30),"",明細表!V581) -> 0 | I30: 7800 | J30: =IF(ISERROR(V30),"",明細表!AC581) -> 0 | K30: 250 | L30: =IF(ISERROR(V30),"",明細表!AJ581) -> 0 | S30: 10750 | T30: 0 | V30: =明細表!AP587 -> 0 | X30: =IF(ISERROR(V30),"",明細表!AU581) -> 0 | BM30: =IF(ISERROR(V30),"",#REF!) -> 
A31: 33203 | B31: 津山市 | G31: 2800 | H31: =IF(ISERROR(V31),"",明細表!V610) -> 0 | I31: 16050 | J31: =IF(ISERROR(V31),"",明細表!AC610) -> 0 | K31: 650 | L31: =IF(ISERROR(V31),"",明細表!AJ610) -> 0 | S31: 19500 | T31: 0 | V31: =明細表!AP629 -> 0 | X31: =IF(ISERROR(V31),"",明細表!AU610) -> 0 | BM31: =IF(ISERROR(V31),"",#REF!) -> 
A32: 33600 | B32: 苫田郡 | I32: 2350 | J32: =IF(ISERROR(V32),"",明細表!AC620) -> 0 | S32: 2350 | T32: 0 | V32: =明細表!AP629 -> 0 | X32: =IF(ISERROR(V32),"",明細表!AU620) -> 0 | BM32: =IF(ISERROR(V32),"",#REF!) -> 
A33: 33620 | B33: 勝田郡 | G33: 300 | H33: =IF(ISERROR(V33),"",明細表!V642) -> 0 | I33: 2400 | J33: =IF(ISERROR(V33),"",明細表!AC642) -> 0 | K33: 50 | L33: =IF(ISERROR(V33),"",明細表!AJ642) -> 0 | S33: 2750 | T33: 0 | V33: =明細表!AP671 -> 0 | X33: =IF(ISERROR(V33),"",明細表!AU642) -> 0 | BM33: =IF(ISERROR(V33),"",#REF!) -> 
A34: 33215 | B34: 美作市 | G34: 350 | H34: =IF(ISERROR(V34),"",明細表!V656) -> 0 | I34: 5200 | J34: =IF(ISERROR(V34),"",明細表!AC656) -> 0 | K34: 50 | L34: =IF(ISERROR(V34),"",明細表!AJ656) -> 0 | S34: 5600 | T34: 0 | V34: =明細表!AP671 -> 0 | X34: =IF(ISERROR(V34),"",明細表!AU656) -> 0 | BM34: =IF(ISERROR(V34),"",#REF!) -> 
A35: 33660 | B35: 久米郡 | G35: 50 | H35: =IF(ISERROR(V35),"",明細表!V667) -> 0 | I35: 3300 | J35: =IF(ISERROR(V35),"",明細表!AC667) -> 0 | S35: 3350 | T35: 0 | V35: =明細表!AP671 -> 0 | X35: =IF(ISERROR(V35),"",明細表!AU667) -> 0 | BM35: =IF(ISERROR(V35),"",#REF!) -> 
C37: =SUM(C8:C36) -> 29350 | D37: 0 | E37: 5100 | F37: 0 | G37: =SUM(G8:G36) -> 50600 | H37: 0 | I37: 252900 | J37: 0 | K37: 13600 | L37: 0 | M37: 50 | N37: 0 | O37: =SUM(O8:O36) -> 3150 | P37: 0 | Q37: =SUM(Q8:Q36) -> 500 | R37: =SUM(R8:R36) -> 0 | S37: =SUM(S8:S36) -> 355250 | T37: =SUM(T8:T36) -> 0
O38: 株式会社 朝日オリコミ岡山 | R38: 2026-08-01 | T38: 2026.07.10

Sheet 明細表
A1: X | B1: 新聞オリコミ広告部数明細表 | H1: 案件番号 | M1: 広 告 名 | X1: 折込日 | AD1: サイズ | AI1: 部数 | AN1: 申込 | AP1: =基本・配布部数合計!$R$38 -> 2026-08-01 | AT1: 合計 | AW1: 200円 | BE1: 460円
A2: X | H2: =IF(AP41=0,"",申込書!$D$18) ->  | M2: =IF(AP41=0,"",申込書!$F$12) ->  | X2: =IF(AP41=0,"",申込書!$D$14) ->  | AD2: =IF(AP41=0,"",申込書!$D$15) ->  | AI2: =IF(AP41=0,"",基本・配布部数合計!$T$37) ->  | AN2: =IF(AP41=0,"",申込書!$D$5) ->  | AP2: 岡山県部数表 | AT2: 200円 | AU2: 460円 | AW2: m01 | AX2: m02 | AY2: m03 | AZ2: m59 | BA2: m05 | BB2: m60 | BC2: m04 | BE2: m01 | BF2: m02 | BG2: m03 | BH2: m59 | BI2: m05 | BJ2: m60 | BK2: m63 | BL2: m04
A3: X | AN3: =IF(AP41=0,"",申込書!$D$6) ->  | AW3: 朝日 | AX3: 毎日 | AY3: 読売 | AZ3: 山陽 | BA3: 産経 | BB3: 中国 | BC3: 日経 | BE3: 朝日 | BF3: 毎日 | BG3: 読売 | BH3: 山陽 | BI3: 産経 | BJ3: 中国 | BK3: 四国 | BL3: 日経
A4: X | AQ4: 1
A5: X | C5: 【 m01 朝 日 】 | J5: 【 m02 毎 日 】 | Q5: 【 m03 読 売 】 | X5: 【 m59 山 陽 】 | AE5: 【 m04 日 経 】 | AL5: 【 m05 産 経 】 | AT5: 合計 | AW5: m01 | AX5: m02 | AY5: m03 | AZ5: m59 | BA5: m05 | BB5: m60 | BC5: m04 | BE5: m01 | BF5: m02 | BG5: m03 | BH5: m59 | BI5: m05 | BJ5: m60 | BK5: m63 | BL5: m04
A6: X | B6: 市 区 | E6: ｺｰﾄﾞ | G6: 基本部数 | H6: 配布部数 | L6: ｺｰﾄﾞ | N6: 基本部数 | O6: 配布部数 | S6: ｺｰﾄﾞ | U6: 基本部数 | V6: 配布部数 | Z6: ｺｰﾄﾞ | AB6: 基本部数 | AC6: 配布部数 | AG6: ｺｰﾄﾞ | AI6: 基本部数 | AJ6: 配布部数 | AN6: ｺｰﾄﾞ | AP6: 基本部数 | AQ6: 配布部数 | AT6: 90円 | AU6: 390円 | AW6: 朝日 | AX6: 毎日 | AY6: 読売 | AZ6: 山陽 | BA6: 産経 | BB6: 中国 | BC6: 日経 | BE6: 朝日 | BF6: 毎日 | BG6: 読売 | BH6: 山陽 | BI6: 産経 | BJ6: 中国 | BK6: 四国 | BL6: 日経
A7: A | B7: 33101 | C7: ● | D7: m01 | E7: 3310101021 | F7: 大元 | G7: 1900 | H7: 0 | J7: ● | K7: m02 | L7: 3310102001 | M7: 岡山中央 | N7: 50 | O7: 0 | Q7: ● | R7: m03 | S7: 3310103001 | T7: 内山下 | U7: 150 | V7: 0 | X7: ● | Y7: m59 | Z7: 3310159001 | AA7: 岡山中央 | AB7: 3600 | AC7: 0 | AE7: ● | AF7: m04 | AG7: 3310159001 | AH7: S岡山中央 | AI7: 1400 | AJ7: 0 | AN7: 3310159001 | AO7: Sa岡山中央 | AP7: ／ | BC7: =IF(COUNTIF(AC7,{">0","<0"}),0,COUNTIF(AJ7,{">0","<0"})) -> 0
A8: A | B8: 岡山市 | C8: ● | D8: m01 | E8: 3310101111 | F8: 岡輝 | G8: 250 | H8: 0 | J8: ● | K8: m02 | L8: 3310102011 | M8: 清輝橋 | N8: 700 | O8: 0 | Q8: ● | R8: m03 | S8: 3310103002 | T8: 岡山中央 | U8: 200 | V8: 0 | X8: ● | Y8: m59 | Z8: 3310159003 | AA8: 野田屋町 | AB8: 1300 | AC8: 0 | AE8: ● | AF8: m04 | AG8: 3310102032 | AH8: M津島 | AI8: 150 | AJ8: 0 | AN8: 3310159003 | AO8: Sa野田屋町 | AP8: ／ | BC8: =IF(COUNTIF(O10,{">0","<0"}),0,COUNTIF(AJ8,{">0","<0"})) -> 0
A9: A | B9: (北区A) | C9: ● | D9: m01 | E9: 3310101112 | F9: 清輝 | G9: 50 | H9: 0 | J9: ● | K9: m02 | L9: 3310102031 | M9: 岡山西 | N9: 500 | O9: 0 | Q9: ● | R9: m03 | S9: 3310103003 | T9: 桑田 | U9: 200 | V9: 0 | X9: ● | Y9: m59 | Z9: 3310159011 | AA9: 岡輝 | AB9: 1300 | AC9: 0 | AE9: ● | AF9: m04 | AG9: 3310159011 | AH9: S岡輝 | AI9: 200 | AJ9: 0 | AN9: 3310159011 | AO9: Sa岡輝 | AP9: ／ | BC9: =IF(COUNTIF(AC9,{">0","<0"}),0,COUNTIF(AJ9,{">0","<0"})) -> 0
A10: A | C10: ● | D10: m01 | E10: 3310101114 | F10: 浜野 | G10: 100 | H10: 0 | J10: ● | K10: m02 | L10: 3310102032 | M10: 津島 | N10: 1500 | O10: 0 | Q10: ● | R10: m03 | S10: 3310103011 | T10: 大供 | U10: 600 | V10: 0 | X10: ● | Y10: m59 | Z10: 3310159012 | AA10: 清輝 | AB10: 350 | AC10: 0 | AE10: ● | AF10: m04 | AG10: 3310159013 | AH10: S鹿田 | AI10: 150 | AJ10: 0 | AN10: 3310159012 | AO10: Sa清輝 | AP10: ／ | BC10: =IF(COUNTIF(AC11,{">0","<0"}),0,COUNTIF(AJ10,{">0","<0"})) -> 0
A11: A | C11: ● | D11: m01 | E11: 3310101031 | F11: 大安寺東 | G11: 550 | H11: 0 | L11: 3310159011 | M11: Sa岡輝 | N11: ／ | Q11: ● | R11: m03 | S11: 3310103021 | T11: 野田 | U11: 650 | V11: 0 | X11: ● | Y11: m59 | Z11: 3310159013 | AA11: 鹿田 | AB11: 1000 | AC11: 0 | AE11: ● | AF11: m04 | AG11: 3310159014 | AH11: S浜野 | AI11: 50 | AJ11: 0 | AN11: 3310159013 | AO11: Sa鹿田 | AP11: ／ | BC11: =IF(COUNTIF(AC12,{">0","<0"}),0,COUNTIF(AJ11,{">0","<0"})) -> 0
A12: A | C12: ● | D12: m01 | E12: 3310101036 | F12: 大安寺西 | G12: 300 | H12: 0 | L12: 3310159021 | M12: Sa新屋敷 | N12: ／ | Q12: ● | R12: m03 | S12: 3310103031 | T12: 三門 | U12: 450 | V12: 0 | X12: ● | Y12: m59 | Z12: 3310159014 | AA12: 浜野 | AB12: 750 | AC12: 0 | AE12: ● | AF12: m04 | AG12: 3310159021 | AH12: S新屋敷 | AI12: 150 | AJ12: 0 | AN12: 3310159014 | AO12: Sa浜野 | AP12: ／ | BC12: =IF(COUNTIF(AC13,{">0","<0"}),0,COUNTIF(AJ12,{">0","<0"})) -> 0
A13: A | C13: ● | D13: m01 | E13: 3310101033 | F13: 津島 | G13: 1100 | H13: 0 | L13: 3310159022 | M13: Sa岡山西 | N13: ／ | Q13: ● | R13: m03 | S13: 3310103032 | T13: 奉還町 | U13: 200 | V13: 0 | X13: ● | Y13: m59 | Z13: 3310159021 | AA13: 新屋敷 | AB13: 1050 | AC13: 0 | AE13: ● | AF13: m04 | AG13: 3310159022 | AH13: S岡山西 | AI13: 200 | AJ13: 0 | AN13: 3310159021 | AO13: Sa新屋敷 | AP13: ／ | BC13: =IF(COUNTIF(AC14,{">0","<0"}),0,COUNTIF(AJ13,{">0","<0"})) -> 0
A14: A | C14: ● | D14: m01 | E14: 3310101034 | F14: 津島西 | G14: 500 | H14: 0 | L14: 3310159024 | M14: Sa今 | N14: ／ | Q14: ● | R14: m03 | S14: 3310103033 | T14: 津島 | U14: 250 | V14: 0 | X14: ● | Y14: m59 | Z14: 3310159022 | AA14: 岡山西 | AB14: 1900 | AC14: 0 | AE14: ● | AF14: m04 | AG14: 3310159024 | AH14: S今 | AI14: 150 | AJ14: 0 | AN14: 3310159022 | AO14: Sa岡山西 | AP14: ／ | BC14: =IF(COUNTIF(AC15,{">0","<0"}),0,COUNTIF(AJ14,{">0","<0"})) -> 0
A15: A | C15: ● | D15: m01 | E15: 3310101035 | F15: 岡山北 | G15: 2900 | H15: 0 | L15: 3310159032 | M15: Sa花尻 | N15: ／ | Q15: ● | R15: m03 | S15: 3310103034 | T15: 北方 | U15: 500 | V15: 0 | X15: ● | Y15: m59 | Z15: 3310159024 | AA15: 今 | AB15: 1200 | AC15: 0 | AE15: ● | AF15: m04 | AG15: 3310159031 | AH15: S三門 | AI15: 200 | AJ15: 0 | AN15: 3310159024 | AO15: Sa今 | AP15: ／ | BC15: =IF(COUNTIF(AC16,{">0","<0"}),0,COUNTIF(AJ15,{">0","<0"})) -> 0
A16: A | L16: 3310159038 | M16: Sa玉柏 | N16: ／ | X16: ● | Y16: m59 | Z16: 3310159031 | AA16: 三門 | AB16: 2150 | AC16: 0 | AE16: ● | AF16: m04 | AG16: 3310159032 | AH16: S花尻 | AI16: 50 | AJ16: 0 | AN16: 3310159031 | AO16: Sa三門 | AP16: ／ | BC16: =IF(COUNTIF(AC17,{">0","<0"}),0,COUNTIF(AJ16,{">0","<0"})) -> 0
A17: A | X17: ● | Y17: m59 | Z17: 3310159032 | AA17: 花尻 | AB17: 450 | AC17: 0 | AE17: ● | AF17: m04 | AG17: 3310159034 | AH17: S伊島 | AI17: 350 | AJ17: 0 | AN17: 3310159032 | AO17: Sa花尻 | AP17: ／ | BC17: =IF(COUNTIF(AC18,{">0","<0"}),0,COUNTIF(AJ17,{">0","<0"})) -> 0
A18: A | X18: ● | Y18: m59 | Z18: 3310159034 | AA18: 伊島 | AB18: 2200 | AC18: 0 | AE18: ● | AF18: m04 | AG18: 3310159035 | AH18: S津島 | AI18: 150 | AJ18: 0 | AN18: 3310159034 | AO18: Sa伊島 | AP18: ／ | BC18: =IF(COUNTIF(AC19,{">0","<0"}),0,COUNTIF(AJ18,{">0","<0"})) -> 0
A19: A | X19: ● | Y19: m59 | Z19: 3310159035 | AA19: 津島 | AB19: 1650 | AC19: 0 | AE19: ● | AF19: m04 | AG19: 3310159037 | AH19: S北方 | AI19: 50 | AJ19: 0 | AN19: 3310159035 | AO19: Sa津島 | AP19: ／ | BC19: =IF(COUNTIF(AC20,{">0","<0"}),0,COUNTIF(AJ19,{">0","<0"})) -> 0
A20: A | X20: ● | Y20: m59 | Z20: 3310159037 | AA20: 北方 | AB20: 700 | AC20: 0 | AE20: ● | AF20: m04 | AG20: 3310159038 | AH20: S玉柏 | AI20: 50 | AJ20: 0 | AN20: 3310159037 | AO20: Sa北方 | AP20: ／ | BC20: =IF(COUNTIF(AC21,{">0","<0"}),0,COUNTIF(AJ20,{">0","<0"})) -> 0
A21: A | X21: ● | Y21: m59 | Z21: 3310159038 | AA21: 玉柏 | AB21: 700 | AC21: 0 | AN21: 3310159038 | AO21: Sa玉柏 | AP21: ／
A22: A
A23: X
A24: X
A25: A
A26: X | F26: 小 計 | G26: =SUM(G7:G22) -> 7650 | H26: =SUM(H7:H22) -> 0 | M26: 小 計 | N26: =SUM(N7:N22) -> 2750 | O26: =SUM(O7:O22) -> 0 | T26: 小 計 | U26: =SUM(U7:U22) -> 3200 | V26: =SUM(V7:V22) -> 0 | AA26: 小 計 | AB26: =SUM(AB7:AB22) -> 20300 | AC26: =SUM(AC7:AC22) -> 0 | AH26: 小 計 | AI26: =SUM(AI7:AI22) -> 3300 | AJ26: =SUM(AJ7:AJ22) -> 0 | AO26: 産 経 小 計 | AP26: =SUM(AP7:AP25) -> 0 | AQ26: =SUM(AQ7:AQ25) -> 0
A27: X | AL27: 【 m60 中 国 】
A28: A | AL28: ● | AM28: m60 | AN28: 3310160001 | AO28: 岡山中央 | AP28: 250 | AQ28: 0 | BB28: =COUNTIF(AQ28,{">0","<0"}) -> 0
A29: A | AN29: 3310159003 | AO29: Sa野田屋町 | AP29: ／
A30: A | AN30: 3310159011 | AO30: Sa岡輝 | AP30: ／
A31: A | AN31: 3310159012 | AO31: Sa清輝 | AP31: ／
A32: A | AN32: 3310159013 | AO32: Sa鹿田 | AP32: ／
A33: A | AN33: 3310159021 | AO33: Sa新屋敷 | AP33: ／
A34: A | AN34: 3310159022 | AO34: Sa岡山西 | AP34: ／
A35: A | AN35: 3310159024 | AO35: Sa今 | AP35: ／
A36: A | AN36: 3310159031 | AO36: Sa三門 | AP36: ／
A37: A | AN37: 3310159034 | AO37: Sa伊島 | AP37: ／
A38: A | AN38: 3310159035 | AO38: Sa津島 | AP38: ／
A39: X | B39: =SUM(G26,N26,U26,AP26,AB26,AI26,AP39) -> 37450 | AO39: 中 国 小 計 | AP39: =SUM(AP28:AP37) -> 250 | AQ39: =SUM(AQ28) -> 0
A40: X | B40: 合計 | C40: 合計 | D40: 合計 | G40: =G26 -> 7650 | H40: =H26 -> 0 | K40: 合計 | N40: =N26 -> 2750 | O40: =O26 -> 0 | R40: 合計 | U40: =U26 -> 3200 | V40: =V26 -> 0 | Y40: 合計 | AB40: =AB26 -> 20300 | AC40: =AC26 -> 0 | AE40: 合計 | AI40: =AI26 -> 3300 | AJ40: =AJ26 -> 0 | AM40: 合計 | AP40: =SUM(AP26,AP39) -> 250 | AQ40: =SUM(AQ26,AQ39) -> 0
A41: X | C41: 販売店名左横欄は、配送管理料を表します。 ●：２００円(税込２２０円)、 ■：４６０円(税込５０６円)の販売店です。 | AL41: ペ ー ジ 計 | AP41: =SUM(H40,O40,V40,AQ40,AC40,AJ40) -> 0 | AT41: =SUM(AW41:BC41) -> 0 | AU41: =SUM(BE41:BL41) -> 0 | AW41: =COUNTIF(H7:H17,{">0","<0"}) -> 0 | AX41: =COUNTIF(O7:O10,{">0","<0"}) -> 0 | AY41: =COUNTIF(V7:V15,{">0","<0"}) -> 0 | AZ41: =COUNTIF(AC7:AC22,{">0","<0"}) -> 0 | BB41: =SUM(BB7:BB40) -> 0 | BC41: =SUM(BC7:BC40) -> 0
A42: X | C42: 販売店内の区域指定（広告主中心・広告主よりへ・会場中心・会場よりへ・教室中心に・教室よりに・東よりへ・西よりへ・北よりへ・南よりへ） | AL42: 株式会社 朝日オリコミ岡山 | AR42: =基本・配布部数合計!$T$38 -> 2026.07.10
A43: X | B43: 新聞オリコミ広告部数明細表 | H43: 案件番号 | M43: 広 告 名 | X43: 折込日 | AD43: サイズ | AI43: 部数 | AN43: 申込 | AP43: =基本・配布部数合計!$R$38 -> 2026-08-01
A44: X | H44: =IF(AP83=0,"",申込書!$D$18) ->  | M44: =IF(AP83=0,"",申込書!$F$12) ->  | X44: =IF(AP83=0,"",申込書!$D$14) ->  | AD44: =IF(AP83=0,"",申込書!$D$15) ->  | AI44: =IF(AP83=0,"",基本・配布部数合計!$T$37) ->  | AN44: =IF(AP83=0,"",申込書!$D$5) ->  | AP44: 岡山県部数表
A45: X | AN45: =IF(AP83=0,"",申込書!$D$6) -> 
A46: X | AQ46: 2
A47: X | C47: 【 m01 朝 日 】 | J47: 【 m02 毎 日 】 | Q47: 【 m03 読 売 】 | X47: 【 m59 山 陽 】 | AE47: 【 m04 日 経 】 | AL47: 【 m05 産 経 】
A48: X | B48: 市 区 | E48: ｺｰﾄﾞ | G48: 基本部数 | H48: 配布部数 | L48: ｺｰﾄﾞ | N48: 基本部数 | O48: 配布部数 | S48: ｺｰﾄﾞ | U48: 基本部数 | V48: 配布部数 | Z48: ｺｰﾄﾞ | AB48: 基本部数 | AC48: 配布部数 | AG48: ｺｰﾄﾞ | AI48: 基本部数 | AJ48: 配布部数 | AN48: ｺｰﾄﾞ | AP48: 基本部数 | AQ48: 配布部数
A49: A | B49: 33101 | C49: ■ | D49: m01 | E49: 3310101051 | F49: 津高 | G49: 400 | H49: 0 | L49: 3310159051 | M49: Sa津高 | N49: ／ | Q49: ■ | R49: m03 | S49: 3310103051 | T49: 岡山北 | U49: 200 | V49: 0 | X49: ■ | Y49: m59 | Z49: 3310159051 | AA49: 津高 | AB49: 1500 | AC49: 0 | AE49: ■ | AF49: m04 | AG49: 3310101081 | AH49: A庭瀬・庄 | AI49: 150 | AJ49: 0 | AN49: 3310159051 | AO49: Sa津高 | AP49: ／ | BL49: =IF(COUNTIF(H51,{">0","<0"}),0,COUNTIF(AJ49,{">0","<0"})) -> 0
A50: A | B50: 岡山市 | C50: ■ | D50: m01 | E50: 3310101071 | F50: 一宮 | G50: 650 | H50: 0 | L50: 3310159052 | M50: Sa津高北 | N50: ／ | Q50: ■ | R50: m03 | S50: 3310103062 | T50: 建部 | U50: 100 | V50: 0 | X50: ■ | Y50: m59 | Z50: 3310159052 | AA50: 津高北 | AB50: 1150 | AC50: 0 | AE50: ■ | AF50: m04 | AG50: 3310101082 | AH50: A庭瀬東 | AI50: 50 | AJ50: 0 | AN50: 3310159052 | AO50: Sa津高北 | AP50: ／ | BL50: =IF(COUNTIF(H52,{">0","<0"}),0,COUNTIF(AJ50,{">0","<0"})) -> 0
A51: A | B51: (北区B) | C51: ■ | D51: m01 | E51: 3310101081 | F51: 庭瀬・庄 | G51: 1050 | H51: 0 | L51: 3310159054 | M51: Sa牧山 | N51: ／ | Q51: ■ | R51: m03 | S51: 3310103071 | T51: 一の宮 | U51: 400 | V51: 0 | X51: ■ | Y51: m59 | Z51: 3310159054 | AA51: 牧山 | AB51: 150 | AC51: 0 | AE51: ■ | AF51: m04 | AG51: 3310159051 | AH51: S津高 | AI51: 100 | AJ51: 0 | AN51: 3310159054 | AO51: Sa牧山 | AP51: ／ | BL51: =IF(COUNTIF(AC49,{">0","<0"}),0,COUNTIF(AJ51,{">0","<0"})) -> 0
A52: A | C52: ■ | D52: m01 | E52: 3310101082 | F52: 庭瀬東 | G52: 750 | H52: 0 | L52: 3310159062 | M52: Saみつ | N52: ／ | Q52: ■ | R52: m03 | S52: 3310103072 | T52: 備中高松 | U52: 500 | V52: 0 | X52: ■ | Y52: m59 | Z52: 3310159062 | AA52: みつ | AB52: 1500 | AC52: 0 | AE52: ■ | AF52: m04 | AG52: 3310159052 | AH52: S津高北 | AI52: 100 | AJ52: 0 | AN52: 3310159062 | AO52: Saみつ | AP52: ／ | BL52: =IF(COUNTIF(AC50,{">0","<0"}),0,COUNTIF(AJ52,{">0","<0"})) -> 0
A53: A | E53: 3310159062 | F53: Saみつ | G53: ／ | L53: 3310159064 | M53: Sa福渡 | N53: ／ | Q53: ■ | R53: m03 | S53: 3310103081 | T53: 岡山西部 | U53: 1000 | V53: 0 | X53: ■ | Y53: m59 | Z53: 3310159064 | AA53: 福渡 | AB53: 1100 | AC53: 0 | AG53: 3310159054 | AH53: Sa牧山 | AI53: ／ | AN53: 3310159064 | AO53: Sa福渡 | AP53: ／
A54: A | E54: 3310159064 | F54: Sa福渡 | G54: ／ | L54: 3310159071 | M54: Sa矢坂 | N54: ／ | S54: 3310159062 | T54: Saみつ | U54: ／ | X54: ■ | Y54: m59 | Z54: 3310159071 | AA54: 矢坂 | AB54: 900 | AC54: 0 | AG54: 3310159062 | AH54: Saみつ | AI54: ／ | AN54: 3310159071 | AO54: Sa矢坂 | AP54: ／
A55: A | E55: 3310159074 | F55: Sa吉備津 | G55: ／ | L55: 3310159072 | M55: Sa芳賀佐山 | N55: ／ | S55: 3310159064 | T55: Sa福渡 | U55: ／ | X55: ■ | Y55: m59 | Z55: 3310159072 | AA55: 芳賀佐山 | AB55: 650 | AC55: 0 | AG55: 3310159064 | AH55: Sa福渡 | AI55: ／ | AN55: 3310159072 | AO55: Sa芳賀佐山 | AP55: ／
A56: A | E56: 3310159075 | F56: Sa高松 | G56: ／ | L56: 3310159073 | M56: Sa一宮 | N56: ／ | X56: ■ | Y56: m59 | Z56: 3310159073 | AA56: 一宮 | AB56: 1600 | AC56: 0 | AG56: 3310159071 | AH56: Sa矢坂 | AI56: ／ | AN56: 3310159073 | AO56: Sa一宮 | AP56: ／
A57: A | E57: 3310159076 | F57: Sa高松西・足守 | G57: ／ | L57: 3310159074 | M57: Sa吉備津 | N57: ／ | X57: ■ | Y57: m59 | Z57: 3310159074 | AA57: 吉備津 | AB57: 800 | AC57: 0 | AE57: ■ | AF57: m04 | AG57: 3310159072 | AH57: S芳賀佐山 | AI57: 100 | AJ57: 0 | AN57: 3310159074 | AO57: Sa吉備津 | AP57: ／ | BL57: =IF(COUNTIF(AC55,{">0","<0"}),0,COUNTIF(AJ57,{">0","<0"})) -> 0
A58: A | L58: 3310159075 | M58: Sa高松 | N58: ／ | X58: ■ | Y58: m59 | Z58: 3310159075 | AA58: 高松 | AB58: 1650 | AC58: 0 | AE58: ■ | AF58: m04 | AG58: 3310159073 | AH58: S一宮 | AI58: 100 | AJ58: 0 | AN58: 3310159075 | AO58: Sa高松 | AP58: ／ | BL58: =IF(COUNTIF(AC56,{">0","<0"}),0,COUNTIF(AJ58,{">0","<0"})) -> 0
A59: A | L59: 3310159076 | M59: Sa高松西足守 | N59: ／ | X59: ■ | Y59: m59 | Z59: 3310159076 | AA59: 高松西・足守 | AB59: 1850 | AC59: 0 | AG59: 3310159074 | AH59: Sa吉備津 | AI59: ／ | AN59: 3310159076 | AO59: Sa高松西足守 | AP59: ／
A60: A | L60: 3310159081 | M60: Sa庭瀬白石 | N60: ／ | X60: ■ | Y60: m59 | Z60: 3310159081 | AA60: 庭瀬白石 | AB60: 1800 | AC60: 0 | AG60: 3310159075 | AH60: Sa高松 | AI60: ／ | AN60: 3310159081 | AO60: Sa庭瀬白石 | AP60: ／
A61: A | L61: 3310159082 | M61: Sa北庭瀬 | N61: ／ | X61: ■ | Y61: m59 | Z61: 3310159082 | AA61: 北庭瀬 | AB61: 1750 | AC61: 0 | AG61: 3310159076 | AH61: Sa高松西足守 | AI61: ／ | AN61: 3310159082 | AO61: Sa北庭瀬 | AP61: ／
A62: A | AE62: ■ | AF62: m04 | AG62: 3310159081 | AH62: S庭瀬白石 | AI62: 100 | AJ62: 0 | BL62: =IF(COUNTIF(AC60,{">0","<0"}),0,COUNTIF(AJ62,{">0","<0"})) -> 0
A63: A | AG63: 3310159082 | AH63: Sa北庭瀬 | AI63: ／
A64: A
A65: X | B65: =SUM(G65,N65,U65,AP65,AB65,AI65) -> 22150 | F65: 小 計 | G65: =SUM(G49:G62) -> 2850 | H65: =SUM(H49:H62) -> 0 | M65: 小 計 | N65: =SUM(N49:N62) -> 0 | O65: =SUM(O49:O62) -> 0 | T65: 小 計 | U65: =SUM(U49:U62) -> 2200 | V65: =SUM(V49:V62) -> 0 | AA65: 小 計 | AB65: =SUM(AB49:AB61) -> 16400 | AC65: =SUM(AC49:AC61) -> 0 | AH65: 小 計 | AI65: =SUM(AI49:AI63) -> 700 | AJ65: =SUM(AJ49:AJ63) -> 0 | AO65: 小 計 | AP65: =SUM(AP49:AP62) -> 0 | AQ65: =SUM(AQ49:AQ62) -> 0
A66: X
A67: X
A68: X
A69: X
A70: X
A71: X
A72: X
A73: X
A74: X
A75: X
A76: X
A77: X
A78: X
A79: X
A80: X
A81: X
A82: X | B82: 合計 | C82: 合計 | D82: 合計 | G82: =G65 -> 2850 | H82: =H65 -> 0 | K82: 合計 | N82: =N65 -> 0 | O82: =O65 -> 0 | R82: 合計 | U82: =U65 -> 2200 | V82: =V65 -> 0 | Y82: 合計 | AB82: =AB65 -> 16400 | AC82: =AC65 -> 0 | AE82: 合計 | AI82: =AI65 -> 700 | AJ82: =AJ65 -> 0 | AM82: 合計 | AP82: =SUM(AP65,AP74) -> 0 | AQ82: =SUM(AQ65,AQ74) -> 0
A83: X | C83: 販売店名左横欄は、配送管理料を表します。 ●：２００円(税込２２０円)、 ■：４６０円(税込５０６円)の販売店です。 | AL83: ペ ー ジ 計 | AP83: =SUM(H82,O82,V82,AQ82,AC82,AJ82) -> 0 | AT83: =SUM(AW83:BC83) -> 0 | AU83: =SUM(BE83:BL83) -> 0 | BE83: =COUNTIF(H49:H52,{">0","<0"}) -> 0 | BG83: =COUNTIF(V49:V53,{">0","<0"}) -> 0 | BH83: =COUNTIF(AC49:AC61,{">0","<0"}) -> 0 | BL83: =SUM(BL49:BL82) -> 0
A84: X | C84: 販売店内の区域指定（広告主中心・広告主よりへ・会場中心・会場よりへ・教室中心に・教室よりに・東よりへ・西よりへ・北よりへ・南よりへ） | AL84: 株式会社 朝日オリコミ岡山 | AR84: =基本・配布部数合計!$T$38 -> 2026.07.10
A85: X | B85: 新聞オリコミ広告部数明細表 | H85: 案件番号 | M85: 広 告 名 | X85: 折込日 | AD85: サイズ | AI85: 部数 | AN85: 申込 | AP85: =基本・配布部数合計!$R$38 -> 2026-08-01
A86: X | H86: =IF(AP125=0,"",申込書!$D$18) ->  | M86: =IF(AP125=0,"",申込書!$F$12) ->  | X86: =IF(AP125=0,"",申込書!$D$14) ->  | AD86: =IF(AP125=0,"",申込書!$D$15) ->  | AI86: =IF(AP125=0,"",基本・配布部数合計!$T$37) ->  | AN86: =IF(AP125=0,"",申込書!$D$5) ->  | AP86: 岡山県部数表
A87: X | AN87: =IF(AP125=0,"",申込書!$D$6) -> 
A88: X | AQ88: 3
A89: X | C89: 【 m01 朝 日 】 | J89: 【 m02 毎 日 】 | Q89: 【 m03 読 売 】 | X89: 【 m59 山 陽 】 | AE89: 【 m04 日 経 】 | AL89: 【 m05 産 経 】
A90: X | B90: 市 区 | E90: ｺｰﾄﾞ | G90: 基本部数 | H90: 配布部数 | L90: ｺｰﾄﾞ | N90: 基本部数 | O90: 配布部数 | S90: ｺｰﾄﾞ | U90: 基本部数 | V90: 配布部数 | Z90: ｺｰﾄﾞ | AB90: 基本部数 | AC90: 配布部数 | AG90: ｺｰﾄﾞ | AI90: 基本部数 | AJ90: 配布部数 | AN90: ｺｰﾄﾞ | AP90: 基本部数 | AQ90: 配布部数
A91: A | B91: 33102 | C91: ● | D91: m01 | E91: 3310201101 | F91: 高島 | G91: 450 | H91: 0 | L91: 3310259001 | M91: Sa高島 | N91: ／ | Q91: ● | R91: m03 | S91: 3310203001 | T91: 高島 | U91: 1000 | V91: 0 | X91: ● | Y91: m59 | Z91: 3310259001 | AA91: 高島 | AB91: 2300 | AC91: 0 | AE91: ● | AF91: m04 | AG91: 3310201002 | AH91: A原尾島・東山 | AI91: 350 | AJ91: 0 | AN91: 3310259001 | AO91: Sa高島 | AP91: ／ | BC91: =IF(COUNTIF(H93,{">0","<0"}),0,COUNTIF(AJ91,{">0","<0"})) -> 0
A92: A | B92: 岡山市 | C92: ● | D92: m01 | E92: 3310201103 | F92: 幡多 | G92: 450 | H92: 0 | L92: 3310259003 | M92: Sa幡多 | N92: ／ | Q92: ● | R92: m03 | S92: 3310203002 | T92: 原尾島 | U92: 300 | V92: 0 | X92: ● | Y92: m59 | Z92: 3310259003 | AA92: 幡多 | AB92: 1750 | AC92: 0 | AE92: ■ | AF92: m04 | AG92: 3310201051 | AH92: A富山・平井 | AI92: 250 | AJ92: 0 | AN92: 3310259003 | AO92: Sa幡多 | AP92: ／ | BL92: =IF(COUNTIF(H94,{">0","<0"}),0,COUNTIF(AJ92,{">0","<0"})) -> 0
A93: A | B93: (中区) | C93: ● | D93: m01 | E93: 3310201002 | F93: 原尾島・東山 | G93: 1000 | H93: 0 | L93: 3310259005 | M93: Sa原尾島 | N93: ／ | Q93: ● | R93: m03 | S93: 3310203003 | T93: 門田屋敷 | U93: 300 | V93: 0 | X93: ● | Y93: m59 | Z93: 3310259005 | AA93: 原尾島 | AB93: 2600 | AC93: 0 | AE93: ● | AF93: m04 | AG93: 3310259001 | AH93: S高島 | AI93: 100 | AJ93: 0 | AN93: 3310259005 | AO93: Sa原尾島 | AP93: ／ | BC93: =IF(COUNTIF(AC91,{">0","<0"}),0,COUNTIF(AJ93,{">0","<0"})) -> 0
A94: A | C94: ■ | D94: m01 | E94: 3310201051 | F94: 富山・平井 | G94: 1700 | H94: 0 | L94: 3310259006 | M94: Sa三勲 | N94: ／ | Q94: ● | R94: m03 | S94: 3310203004 | T94: 平井 | U94: 1200 | V94: 0 | X94: ● | Y94: m59 | Z94: 3310259006 | AA94: 三勲 | AB94: 900 | AC94: 0 | AE94: ● | AF94: m04 | AG94: 3310259003 | AH94: S幡多 | AI94: 150 | AJ94: 0 | AN94: 3310259006 | AO94: Sa三勲 | AP94: ／ | BC94: =IF(COUNTIF(AC92,{">0","<0"}),0,COUNTIF(AJ94,{">0","<0"})) -> 0
A95: A | C95: ■ | D95: m01 | E95: 3310201161 | F95: 兼基 | G95: 150 | H95: 0 | L95: 3310259007 | M95: Sa平井東 | N95: ／ | Q95: ■ | R95: m03 | S95: 3310203051 | T95: 円山 | U95: 550 | V95: 0 | X95: ● | Y95: m59 | Z95: 3310259007 | AA95: 平井東 | AB95: 1100 | AC95: 0 | AE95: ■ | AF95: m04 | AG95: 3310259008 | AH95: S平井西 | AI95: 50 | AJ95: 0 | AN95: 3310259007 | AO95: Sa平井東 | AP95: ／ | BL95: =IF(COUNTIF(AC96,{">0","<0"}),0,COUNTIF(AJ95,{">0","<0"})) -> 0
A96: A | C96: ■ | D96: m01 | E96: 3310201162 | F96: 古都 | G96: 650 | H96: 0 | L96: 3310259008 | M96: Sa平井西 | N96: ／ | Q96: ■ | R96: m03 | S96: 3310203061 | T96: 岡山東部 | U96: 1300 | V96: 0 | X96: ■ | Y96: m59 | Z96: 3310259008 | AA96: 平井西 | AB96: 1650 | AC96: 0 | AE96: ■ | AF96: m04 | AG96: 3310259051 | AH96: S富山 | AI96: 250 | AJ96: 0 | AN96: 3310259008 | AO96: Sa平井西 | AP96: ／ | BL96: =IF(COUNTIF(AC97,{">0","<0"}),0,COUNTIF(AJ96,{">0","<0"})) -> 0
A97: A | C97: ● | E97: 3310201001 | F97: 幡多高島 2025/11廃店 | G97: 高島・幡多・古都の一部に分割 | L97: 3310259051 | M97: Sa富山 | N97: ／ | X97: ■ | Y97: m59 | Z97: 3310259051 | AA97: 富山 | AB97: 3100 | AC97: 0 | AG97: 3310259052 | AH97: Sa光政 | AI97: ／ | AN97: 3310259051 | AO97: Sa富山 | AP97: ／ | BL97: =IF(COUNTIF(AC98,{">0","<0"}),0,COUNTIF(AJ97,{">0","<0"})) -> 0
A98: A | C98: ■ | E98: 3310201061 | F98: 古都(旧:東岡山) 2025/12廃店 | G98: (古都・兼基・東岡山に分割） | L98: 3310259052 | M98: Sa光政 | N98: ／ | X98: ■ | Y98: m59 | Z98: 3310259052 | AA98: 光政 | AB98: 1600 | AC98: 0 | AE98: ■ | AF98: m04 | AG98: 3310259061 | AH98: Sa兼基 | AI98: 100 | AJ98: 0 | AN98: 3310259052 | AO98: Sa光政 | AP98: ／ | BL98: =IF(COUNTIF(AC99,{">0","<0"}),0,COUNTIF(AJ98,{">0","<0"})) -> 0
A99: A | E99: 3310259008 | F99: Sa平井西 | G99: ／ | L99: 3310259061 | M99: Sa兼基 | N99: ／ | X99: ■ | Y99: m59 | Z99: 3310259061 | AA99: 兼基 | AB99: 1050 | AC99: 0 | AE99: ■ | AF99: m04 | AG99: 3310259062 | AH99: Sa古都 | AI99: 150 | AJ99: 0 | AN99: 3310259061 | AO99: Sa兼基 | AP99: ／ | BL99: =IF(COUNTIF(AC100,{">0","<0"}),0,COUNTIF(AJ99,{">0","<0"})) -> 0
A100: A | E100: 3310259052 | F100: Sa光政 | G100: ／ | L100: 3310259062 | M100: Sa古都 | N100: ／ | X100: ■ | Y100: m59 | Z100: 3310259062 | AA100: 古都 | AB100: 2000 | AC100: 0 | AN100: 3310259062 | AO100: Sa古都 | AP100: ／
A101: A
A102: A
A103: A
A104: A
A105: X | B105: =SUM(G105,N105,U105,AP105,AB105,AI105) -> 28500 | F105: 小 計 | G105: =SUM(G91:G101) -> 4400 | H105: =SUM(H91:H101) -> 0 | M105: 小 計 | N105: =SUM(N91:N99) -> 0 | O105: =SUM(O91:O99) -> 0 | T105: 小 計 | U105: =SUM(U91:U101) -> 4650 | V105: =SUM(V91:V101) -> 0 | AA105: 小 計 | AB105: =SUM(AB91:AB101) -> 18050 | AC105: =SUM(AC91:AC101) -> 0 | AH105: 小 計 | AI105: =SUM(AI91:AI101) -> 1400 | AJ105: =SUM(AJ91:AJ101) -> 0 | AO105: 小 計 | AP105: =SUM(AP91:AP101) -> 0 | AQ105: =SUM(AQ91:AQ101) -> 0 | AT105: =SUM(AW105:BC105) -> 0 | AU105: =SUM(BE105:BL105) -> 0 | AW105: =COUNTIF(H91:H93,{">0","<0"}) -> 0 | AX105: =COUNTIF(O91,{">0","<0"}) -> 0 | AY105: =COUNTIF(V91:V94,{">0","<0"}) -> 0 | AZ105: =COUNTIF(AC91:AC95,{">0","<0"}) -> 0 | BA105: =COUNTIF(AQ91,{">0","<0"}) -> 0 | BC105: =SUM(BC91:BC104) -> 0 | BE105: =COUNTIF(H94:H96,{">0","<0"}) -> 0 | BG105: =COUNTIF(V95:V96,{">0","<0"}) -> 0 | BH105: =COUNTIF(AC96:AC100,{">0","<0"}) -> 0 | BL105: =SUM(BL91:BL104) -> 0
A106: X
A107: X
A108: A | B108: 33103 | C108: ■ | D108: m01 | E108: 3310301151 | F108: 東岡山 | G108: 150 | H108: 0 | L108: 3310359051 | M108: Sa東岡山 | N108: ／ | Q108: ■ | R108: m03 | S108: 3310303061 | T108: 西大寺 | U108: 950 | V108: 0 | X108: ■ | Y108: m59 | Z108: 3310359051 | AA108: 東岡山 | AB108: 850 | AC108: 0 | AE108: ■ | AF108: m04 | AG108: 3310359061 | AH108: S西大寺 | AI108: 150 | AJ108: 0 | AN108: 3310359051 | AO108: Sa東岡山 | AP108: ／ | BL108: =IF(COUNTIF(AC109,{">0","<0"}),0,COUNTIF(AJ108,{">0","<0"})) -> 0
A109: A | B109: 岡山市 | C109: ■ | D109: m01 | E109: 3310301161 | F109: 西大寺 | G109: 550 | H109: 0 | L109: 3310359061 | M109: Sa西大寺 | N109: ／ | Q109: ■ | R109: m03 | S109: 3310303062 | T109: 益野 | U109: 350 | V109: 0 | X109: ■ | Y109: m59 | Z109: 3310359061 | AA109: 西大寺 | AB109: 2950 | AC109: 0 | AE109: ■ | AF109: m04 | AG109: 3310359062 | AH109: Sa芥子山 | AI109: 50 | AJ109: 0 | AN109: 3310359061 | AO109: Sa西大寺 | AP109: ／ | BL109: =IF(COUNTIF(AC110,{">0","<0"}),0,COUNTIF(AJ109,{">0","<0"})) -> 0
A110: A | B110: (東区) | C110: ■ | D110: m01 | E110: 3310301162 | F110: 芥子山 | G110: 150 | H110: 0 | L110: 3310359062 | M110: Sa芥子山 | N110: ／ | Q110: ■ | R110: m03 | S110: 3310303071 | T110: 瀬戸 | U110: 700 | V110: 0 | X110: ■ | Y110: m59 | Z110: 3310359062 | AA110: 芥子山 | AB110: 600 | AC110: 0 | AE110: ■ | AF110: m04 | AG110: 3310359063 | AH110: S益野 | AI110: 50 | AJ110: 0 | AN110: 3310359062 | AO110: Sa芥子山 | AP110: ／ | BL110: =IF(COUNTIF(AC111,{">0","<0"}),0,COUNTIF(AJ110,{">0","<0"})) -> 0
A111: A | C111: ■ | D111: m01 | E111: 3310301163 | F111: 益野 | G111: 250 | H111: 0 | L111: 3310359063 | M111: Sa益野 | N111: ／ | X111: ■ | Y111: m59 | Z111: 3310359063 | AA111: 益野 | AB111: 1200 | AC111: 0 | AG111: 3310359064 | AH111: Sa西大寺東 | AI111: ／ | AN111: 3310359063 | AO111: Sa益野 | AP111: ／
A112: A | C112: ■ | D112: m01 | E112: 3310301164 | F112: 豊 | G112: 200 | H112: 0 | L112: 3310359064 | M112: Sa西大寺東 | N112: ／ | X112: ■ | Y112: m59 | Z112: 3310359064 | AA112: 西大寺東 | AB112: 1050 | AC112: 0 | AG112: 3310359065 | AH112: Sa西大寺南 | AI112: ／ | AN112: 3310359064 | AO112: Sa西大寺東 | AP112: ／
A113: A | E113: 3310359064 | F113: Sa西大寺東 | G113: ／ | L113: 3310359065 | M113: Sa西大寺南 | N113: ／ | X113: ■ | Y113: m59 | Z113: 3310359065 | AA113: 西大寺南 | AB113: 1400 | AC113: 0 | AE113: ■ | AF113: m04 | AG113: 3310359066 | AH113: S豊 | AI113: 100 | AJ113: 0 | AN113: 3310359065 | AO113: Sa西大寺南 | AP113: ／ | BL113: =IF(COUNTIF(AC114,{">0","<0"}),0,COUNTIF(AJ113,{">0","<0"})) -> 0
A114: A | E114: 3310359065 | F114: Sa西大寺南 | G114: ／ | L114: 3310359066 | M114: Sa豊 | N114: ／ | X114: ■ | Y114: m59 | Z114: 3310359066 | AA114: 豊 | AB114: 1550 | AC114: 0 | AE114: ■ | AF114: m04 | AG114: 3310359067 | AH114: Sa平島 | AI114: 50 | AJ114: 0 | AN114: 3310359066 | AO114: Sa豊 | AP114: ／ | BL114: =IF(COUNTIF(AC115,{">0","<0"}),0,COUNTIF(AJ114,{">0","<0"})) -> 0
A115: A | E115: 3310359067 | F115: Sa平島 | G115: ／ | L115: 3310359067 | M115: Sa平島 | N115: ／ | X115: ■ | Y115: m59 | Z115: 3310359067 | AA115: 平島 | AB115: 750 | AC115: 0 | AG115: 3310359071 | AH115: Sa瀬戸 | AI115: ／ | AN115: 3310359067 | AO115: Sa平島 | AP115: ／
A116: A | E116: 3310359071 | F116: Sa瀬戸 | G116: ／ | L116: 3310359071 | M116: Sa瀬戸 | N116: ／ | X116: ■ | Y116: m59 | Z116: 3310359071 | AA116: 瀬戸 | AB116: 1250 | AC116: 0 | AG116: 3310359072 | AH116: Sa瀬戸北 | AI116: ／ | AN116: 3310359071 | AO116: Sa瀬戸 | AP116: ／
A117: A | E117: 3310359072 | F117: Sa瀬戸北 | G117: ／ | L117: 3310359072 | M117: Sa瀬戸北 | N117: ／ | X117: ■ | Y117: m59 | Z117: 3310359072 | AA117: 瀬戸北 | AB117: 1500 | AC117: 0 | AN117: 3310359072 | AO117: Sa瀬戸北 | AP117: ／
A118: A
A119: A
A120: X | B120: =SUM(G120,N120,U120,AP120,AB120,AI120) -> 16800 | F120: 小 計 | G120: =SUM(G108:G118) -> 1300 | H120: =SUM(H108:H118) -> 0 | M120: 小 計 | N120: =SUM(N108:N118) -> 0 | O120: =SUM(O108:O118) -> 0 | T120: 小 計 | U120: =SUM(U108:U118) -> 2000 | V120: =SUM(V108:V118) -> 0 | AA120: 小 計 | AB120: =SUM(AB108:AB118) -> 13100 | AC120: =SUM(AC108:AC118) -> 0 | AH120: 小 計 | AI120: =SUM(AI108:AI118) -> 400 | AJ120: =SUM(AJ108:AJ118) -> 0 | AO120: 小 計 | AP120: =SUM(AP108:AP118) -> 0 | AQ120: =SUM(AQ108:AQ118) -> 0 | AT120: =SUM(AW120:BC120) -> 0 | AU120: =SUM(BE120:BL120) -> 0 | BC120: =SUM(BC108:BC119) -> 0 | BE120: =COUNTIF(H108:H112,{">0","<0"}) -> 0 | BG120: =COUNTIF(V108:V110,{">0","<0"}) -> 0 | BH120: =COUNTIF(AC108:AC117,{">0","<0"}) -> 0 | BL120: =SUM(BL108:BL119) -> 0
A121: X
A122: X
A123: X
A124: X | B124: 合計 | C124: 合計 | D124: 合計 | G124: =SUM(G105,G120) -> 5700 | H124: =SUM(H105,H120) -> 0 | K124: 合計 | N124: =SUM(N105,N120) -> 0 | O124: =SUM(O105,O120) -> 0 | R124: 合計 | U124: =SUM(U105,U120) -> 6650 | V124: =SUM(V105,V120) -> 0 | Y124: 合計 | AB124: =SUM(AB105,AB120) -> 31150 | AC124: =SUM(AC105,AC120) -> 0 | AE124: 合計 | AI124: =SUM(AI105,AI120) -> 1800 | AJ124: =SUM(AJ105,AJ120) -> 0 | AM124: 合計 | AP124: =SUM(AP105,AP120) -> 0 | AQ124: =SUM(AQ105,AQ120) -> 0
A125: X | C125: 販売店名左横欄は、配送管理料を表します。 ●：２００円(税込２２０円)、 ■：４６０円(税込５０６円)の販売店です。 | AL125: ペ ー ジ 計 | AP125: =SUM(H124,O124,V124,AQ124,AC124,AJ124) -> 0
A126: X | C126: 販売店内の区域指定（広告主中心・広告主よりへ・会場中心・会場よりへ・教室中心に・教室よりに・東よりへ・西よりへ・北よりへ・南よりへ） | AL126: 株式会社 朝日オリコミ岡山 | AR126: =基本・配布部数合計!$T$38 -> 2026.07.10
A127: X | B127: 新聞オリコミ広告部数明細表 | H127: 案件番号 | M127: 広 告 名 | X127: 折込日 | AD127: サイズ | AI127: 部数 | AN127: 申込 | AP127: =基本・配布部数合計!$R$38 -> 2026-08-01
A128: X | H128: =IF(AP167=0,"",申込書!$D$18) ->  | M128: =IF(AP167=0,"",申込書!$F$12) ->  | X128: =IF(AP167=0,"",申込書!$D$14) ->  | AD128: =IF(AP167=0,"",申込書!$D$15) ->  | AI128: =IF(AP167=0,"",基本・配布部数合計!$T$37) ->  | AN128: =IF(AP167=0,"",申込書!$D$5) ->  | AP128: 岡山県部数表
A129: X | AN129: =IF(AP167=0,"",申込書!$D$6) -> 
A130: X | AQ130: 4
A131: X | C131: 【 m01 朝 日 】 | J131: 【 m02 毎 日 】 | Q131: 【 m03 読 売 】 | X131: 【 m59 山 陽 】 | AE131: 【 m04 日 経 】 | AL131: 【 m05 産 経 】
A132: X | B132: 市 区 | E132: ｺｰﾄﾞ | G132: 基本部数 | H132: 配布部数 | L132: ｺｰﾄﾞ | N132: 基本部数 | O132: 配布部数 | S132: ｺｰﾄﾞ | U132: 基本部数 | V132: 配布部数 | Z132: ｺｰﾄﾞ | AB132: 基本部数 | AC132: 配布部数 | AG132: ｺｰﾄﾞ | AI132: 基本部数 | AJ132: 配布部数 | AN132: ｺｰﾄﾞ | AP132: 基本部数 | AQ132: 配布部数
A133: A | B133: 33104 | C133: ● | D133: m01 | E133: 3310401103 | F133: 福島 | G133: 350 | H133: 0 | J133: ● | K133: m02 | L133: 3310402001 | M133: 岡南 | N133: 1500 | O133: 0 | Q133: ● | R133: m03 | S133: 3310403001 | T133: 福浜 | U133: 300 | V133: 0 | X133: ● | Y133: m59 | Z133: 3310459003 | AA133: 福島 | AB133: 2050 | AC133: 0 | AE133: ● | AF133: m04 | AG133: 3310402001 | AH133: M岡南 | AI133: 300 | AJ133: 0 | AN133: 3310459003 | AO133: Sa福島 | AP133: ／ | BC133: =IF(COUNTIF(O133,{">0","<0"}),0,COUNTIF(AJ133,{">0","<0"})) -> 0
A134: A | B134: 岡山市 | C134: ● | D134: m01 | E134: 3310401104 | F134: 岡南 | G134: 500 | H134: 0 | L134: 3310459003 | M134: Sa福島 | N134: ／ | Q134: ● | R134: m03 | S134: 3310403002 | T134: 当新田 | U134: 500 | V134: 0 | X134: ● | Y134: m59 | Z134: 3310459004 | AA134: 岡南 | AB134: 2300 | AC134: 0 | AE134: ● | AF134: m04 | AG134: 3310459003 | AH134: Sa福島 | AI134: 100 | AJ134: 0 | AN134: 3310459004 | AO134: Sa岡南 | AP134: ／ | BC134: =IF(COUNTIF(AC133,{">0","<0"}),0,COUNTIF(AJ134,{">0","<0"})) -> 0
A135: A | B135: (南区) | C135: ● | D135: m01 | E135: 3310401106 | F135: 浦安 | G135: 200 | H135: 0 | L135: 3310459004 | M135: Sa岡南 | N135: ／ | Q135: ● | R135: m03 | S135: 3310403003 | T135: 岡山南 | U135: 500 | V135: 0 | X135: ● | Y135: m59 | Z135: 3310459006 | AA135: 浦安 | AB135: 1300 | AC135: 0 | AE135: ● | AF135: m04 | AG135: 3310459004 | AH135: S岡南 | AI135: 150 | AJ135: 0 | AN135: 3310459006 | AO135: Sa浦安 | AP135: ／ | BC135: =IF(COUNTIF(AC134,{">0","<0"}),0,COUNTIF(AJ135,{">0","<0"})) -> 0
A136: A | C136: ● | D136: m01 | E136: 3310401107 | F136: 泉田 | G136: 400 | H136: 0 | L136: 3310459006 | M136: Sa浦安 | N136: ／ | Q136: ■ | R136: m03 | S136: 3310403051 | T136: 妹尾 | U136: 1000 | V136: 0 | X136: ● | Y136: m59 | Z136: 3310459007 | AA136: 泉田 | AB136: 1850 | AC136: 0 | AE136: ● | AF136: m04 | AG136: 3310459006 | AH136: S浦安 | AI136: 100 | AJ136: 0 | AN136: 3310459007 | AO136: Sa泉田 | AP136: ／ | BC136: =IF(COUNTIF(AC135,{">0","<0"}),0,COUNTIF(AJ136,{">0","<0"})) -> 0
A137: A | C137: ● | D137: m01 | E137: 3310401108 | F137: 新保 | G137: 200 | H137: 0 | L137: 3310459007 | M137: Sa泉田 | N137: ／ | S137: 3310459055 | T137: Sa郡（八浜） | U137: ／ | X137: ● | Y137: m59 | Z137: 3310459008 | AA137: 新保 | AB137: 1050 | AC137: 0 | AE137: ● | AF137: m04 | AG137: 3310459007 | AH137: S泉田 | AI137: 50 | AJ137: 0 | AN137: 3310459008 | AO137: Sa新保 | AP137: ／ | BC137: =IF(COUNTIF(AC136,{">0","<0"}),0,COUNTIF(AJ137,{">0","<0"})) -> 0
A138: A | C138: ● | D138: m01 | E138: 3310401109 | F138: 芳田 | G138: 200 | H138: 0 | L138: 3310459008 | M138: Sa新保 | N138: ／ | S138: 3310459056 | T138: Sa迫川 | U138: ／ | X138: ● | Y138: m59 | Z138: 3310459009 | AA138: 芳田 | AB138: 1400 | AC138: 0 | AE138: ● | AF138: m04 | AG138: 3310459008 | AH138: S新保 | AI138: 100 | AJ138: 0 | AN138: 3310459009 | AO138: Sa芳田 | AP138: ／ | BC138: =IF(COUNTIF(AC137,{">0","<0"}),0,COUNTIF(AJ138,{">0","<0"})) -> 0
A139: A | C139: ■ | D139: m01 | E139: 3310401051 | F139: 妹尾・早島 | G139: 2550 | H139: 0 | L139: 3310459009 | M139: Sa芳田 | N139: ／ | X139: ■ | Y139: m59 | Z139: 3310459053 | AA139: 妹尾・大福 | AB139: 2600 | AC139: 0 | AE139: ● | AF139: m04 | AG139: 3310459009 | AH139: S芳田 | AI139: 100 | AJ139: 0 | AN139: 3310459053 | AO139: Sa妹尾・大福 | AP139: ／ | BC139: =IF(COUNTIF(AC138,{">0","<0"}),0,COUNTIF(AJ139,{">0","<0"})) -> 0
A140: A | E140: 3310459055 | F140: Sa郡（八浜） | G140: ／ | L140: 3310459053 | M140: Sa妹尾・大福 | N140: ／ | X140: ■ | Y140: m59 | Z140: 3310459057 | AA140: 藤田（芳田） | AB140: 350 | AC140: 0 | AE140: ■ | AF140: m04 | AG140: 3310401051 | AH140: A妹尾・早島 | AI140: 50 | AJ140: 0 | AN140: 3310459057 | AO140: Sa藤田（芳田） | AP140: ／ | BL140: =IF(COUNTIF(H139,{">0","<0"}),0,COUNTIF(AJ140,{">0","<0"})) -> 0
A141: A | E141: 3310459056 | F141: Sa迫川 | G141: ／ | L141: 3310459057 | M141: Sa藤田（芳田） | N141: ／ | X141: ■ | Y141: m59 | Z141: 3310459052 | AA141: 妹尾西 | AB141: 1750 | AC141: 0 | AE141: ■ | AF141: m04 | AG141: 3310459053 | AH141: Sa妹尾・大福 | AI141: 150 | AJ141: 0 | AN141: 3310459052 | AO141: Sa妹尾西 | AP141: ／ | BL141: =IF(COUNTIF(AC139,{">0","<0"}),0,COUNTIF(AJ141,{">0","<0"})) -> 0
A142: A | L142: 3310459052 | M142: Sa妹尾西 | N142: ／ | X142: ■ | Y142: m59 | Z142: 3310459054 | AA142: 興除 | AB142: 950 | AC142: 0 | AE142: ■ | AF142: m04 | AG142: 3310459052 | AH142: Sa妹尾西 | AI142: 100 | AJ142: 0 | AN142: 3310459054 | AO142: Sa興除 | AP142: ／ | BL142: =IF(COUNTIF(AC141,{">0","<0"}),0,COUNTIF(AJ142,{">0","<0"})) -> 0
A143: A | L143: 3310459054 | M143: Sa興除 | N143: ／ | X143: ■ | Y143: m59 | Z143: 3310459055 | AA143: 郡（八浜） | AB143: 900 | AC143: 0 | AE143: ■ | AF143: m04 | AG143: 3310459054 | AH143: Sa興除 | AI143: 50 | AJ143: 0 | AN143: 3310459055 | AO143: Sa郡（八浜） | AP143: ／ | BL143: =IF(COUNTIF(AC142,{">0","<0"}),0,COUNTIF(AJ143,{">0","<0"})) -> 0
A144: A | L144: 3310459055 | M144: Sa郡（八浜） | N144: ／ | X144: ■ | Y144: m59 | Z144: 3310459056 | AA144: 迫川 | AB144: 3150 | AC144: 0 | AG144: 3310459055 | AH144: Sa郡（八浜） | AI144: ／ | AN144: 3310459056 | AO144: Sa迫川 | AP144: ／
A145: A | L145: 3310459056 | M145: Sa迫川 | N145: ／ | AE145: ■ | AF145: m04 | AG145: 3310459056 | AH145: S迫川 | AI145: 100 | AJ145: 0 | BL145: =IF(COUNTIF(AC144,{">0","<0"}),0,COUNTIF(AJ145,{">0","<0"})) -> 0
A146: A
A147: A
A148: A
A149: X | B149: =SUM(G149,N149,U149,AP149,AB149,AI149) -> 29200 | F149: 小 計 | G149: =SUM(G133:G147) -> 4400 | H149: =SUM(H133:H147) -> 0 | M149: 小 計 | N149: =SUM(N133:N147) -> 1500 | O149: =SUM(O133:O147) -> 0 | T149: 小 計 | U149: =SUM(U133:U147) -> 2300 | V149: =SUM(V133:V147) -> 0 | AA149: 小 計 | AB149: =SUM(AB133:AB147) -> 19650 | AC149: =SUM(AC133:AC147) -> 0 | AH149: 小 計 | AI149: =SUM(AI133:AI147) -> 1350 | AJ149: =SUM(AJ133:AJ147) -> 0 | AO149: 小 計 | AP149: =SUM(AP133:AP147) -> 0 | AQ149: =SUM(AQ133:AQ147) -> 0 | AT149: =SUM(AW149:BC149) -> 0 | AU149: =SUM(BE149:BL149) -> 0 | AW149: =COUNTIF(H133:H138,{">0","<0"}) -> 0 | AX149: =COUNTIF(O133:O133,{">0","<0"}) -> 0 | AY149: =COUNTIF(V133:V135,{">0","<0"}) -> 0 | AZ149: =COUNTIF(AC133:AC138,{">0","<0"}) -> 0 | BC149: =SUM(BC133:BC147) -> 0 | BE149: =COUNTIF(H139,{">0","<0"}) -> 0 | BG149: =COUNTIF(V136,{">0","<0"}) -> 0 | BH149: =COUNTIF(AC139:AC144,{">0","<0"}) -> 0 | BL149: =SUM(BL134:BL147) -> 0
A150: X
A151: X
A152: X | AL152: 【 m60 中 国 】
A153: X | AN153: 3310459008 | AO153: Sa新保 | AP153: ／
A154: X
A155: X
A156: X
A157: X | AO157: 中 国 小 計 | AP157: =SUM(AP153:AP155) -> 0 | AQ157: =SUM(AQ153) -> 0
A158: X
A159: X
A160: X
A161: X
A162: X
A163: X
A164: X
A165: X
A166: X | B166: 合計 | C166: 合計 | D166: 合計 | G166: =SUM(G149) -> 4400 | H166: =SUM(H149) -> 0 | K166: 合計 | N166: =SUM(N149) -> 1500 | O166: =SUM(O149) -> 0 | R166: 合計 | U166: =SUM(U149) -> 2300 | V166: =SUM(V149) -> 0 | Y166: 合計 | AB166: =SUM(AB149) -> 19650 | AC166: =SUM(AC149) -> 0 | AE166: 合計 | AI166: =SUM(AI149) -> 1350 | AJ166: =SUM(AJ149) -> 0 | AM166: 合計 | AP166: =SUM(AP149) -> 0 | AQ166: =SUM(AQ149) -> 0
A167: X | C167: 販売店名左横欄は、配送管理料を表します。 ●：２００円(税込２２０円)、 ■：４６０円(税込５０６円)の販売店です。 | AL167: ペ ー ジ 計 | AP167: =SUM(H166,O166,V166,AQ166,AC166,AJ166) -> 0
A168: X | C168: 販売店内の区域指定（広告主中心・広告主よりへ・会場中心・会場よりへ・教室中心に・教室よりに・東よりへ・西よりへ・北よりへ・南よりへ） | AL168: 株式会社 朝日オリコミ岡山 | AR168: =基本・配布部数合計!$T$38 -> 2026.07.10
A169: X | B169: 新聞オリコミ広告部数明細表 | H169: 案件番号 | M169: 広 告 名 | X169: 折込日 | AD169: サイズ | AI169: 部数 | AN169: 申込 | AP169: =基本・配布部数合計!$R$38 -> 2026-08-01
A170: X | H170: =IF(AP209=0,"",申込書!$D$18) ->  | M170: =IF(AP209=0,"",申込書!$F$12) ->  | X170: =IF(AP209=0,"",申込書!$D$14) ->  | AD170: =IF(AP209=0,"",申込書!$D$15) ->  | AI170: =IF(AP209=0,"",基本・配布部数合計!$T$37) ->  | AN170: =IF(AP209=0,"",申込書!$D$5) ->  | AP170: 岡山県部数表
A171: X | AN171: =IF(AP209=0,"",申込書!$D$6) -> 
A172: X | AQ172: 5
A173: X | C173: 【 m01 朝 日 】 | J173: 【 m02 毎 日 】 | Q173: 【 m03 読 売 】 | X173: 【 m59 山 陽 】 | AE173: 【 m04 日 経 】 | AL173: 【 m05 産 経 】
A174: X | B174: 市 区 | E174: ｺｰﾄﾞ | G174: 基本部数 | H174: 配布部数 | L174: ｺｰﾄﾞ | N174: 基本部数 | O174: 配布部数 | S174: ｺｰﾄﾞ | U174: 基本部数 | V174: 配布部数 | Z174: ｺｰﾄﾞ | AB174: 基本部数 | AC174: 配布部数 | AG174: ｺｰﾄﾞ | AI174: 基本部数 | AJ174: 配布部数 | AN174: ｺｰﾄﾞ | AP174: 基本部数 | AQ174: 配布部数
A175: A | B175: 33204 | C175: ■ | D175: m01 | E175: 3320401001 | F175: 玉野 (読売800含む) | G175: 1950 | H175: 0 | L175: 3320459001 | M175: Sa宇野 | N175: ／ | S175: 3320401001 | T175: A玉野 | U175: ／ | X175: ■ | Y175: m59 | Z175: 3320459001 | AA175: 宇野 | AB175: 1100 | AC175: 0 | AE175: ■ | AF175: m04 | AG175: 3320459001 | AH175: Sa宇野 (直島含む) | AI175: 200 | AJ175: 0 | AN175: 3320459001 | AO175: Sa宇野 | AP175: ／ | BE175: =SUM(H175:H176) -> 0 | BH175: =SUM(AC175:AC176) -> 0 | BL175: =IF(COUNTIF(BH175,{">0","<0"}),0,COUNTIF(AJ175,{">0","<0"})) -> 0
A176: A | B176: 玉野市 | D176: m01 | E176: 3736001001 | F176: 直島（玉野） (読売100含む) | G176: 150 | H176: 0 | L176: 3736059001 | M176: Sa直島(宇野) | N176: ／ | S176: 3736001001 | T176: A直島（玉野） | U176: ／ | Y176: m59 | Z176: 3736059001 | AA176: 直島(宇野) | AB176: 200 | AC176: 0 | AE176: ■ | AF176: m04 | AG176: 3320459002 | AH176: Sa宇野西 | AI176: 50 | AJ176: 0 | AN176: 3736059001 | AO176: Sa直島(宇野) | AP176: ／ | BL176: =IF(COUNTIF(AC177,{">0","<0"}),0,COUNTIF(AJ176,{">0","<0"})) -> 0
A177: A | B177: (香川県直島町含む） | D177: 合計 | E177: 3320459012 | F177: Sa八浜 | G177: ／ | L177: 3320459002 | M177: Sa宇野西 | N177: ／ | S177: 3320459012 | T177: Sa八浜 | U177: ／ | X177: ■ | Y177: m59 | Z177: 3320459002 | AA177: 宇野西 | AB177: 600 | AC177: 0 | AE177: ■ | AF177: m04 | AG177: 3320459003 | AH177: Sa田井 | AI177: 50 | AJ177: 0 | AN177: 3320459002 | AO177: Sa宇野西 | AP177: ／ | BL177: =IF(COUNTIF(AC178,{">0","<0"}),0,COUNTIF(AJ177,{">0","<0"})) -> 0
A178: A | D178: 合計 | E178: 3320459013 | F178: Sa荘内 | G178: ／ | L178: 3320459003 | M178: Sa田井 | N178: ／ | S178: 3320459013 | T178: Sa荘内 | U178: ／ | X178: ■ | Y178: m59 | Z178: 3320459003 | AA178: 田井 | AB178: 1100 | AC178: 0 | AE178: ■ | AF178: m04 | AG178: 3320459005 | AH178: Sa奥玉 | AI178: 50 | AJ178: 0 | AN178: 3320459003 | AO178: Sa田井 | AP178: ／ | BL178: =IF(COUNTIF(AC179,{">0","<0"}),0,COUNTIF(AJ178,{">0","<0"})) -> 0
A179: A | L179: 3320459005 | M179: Sa奥玉 | N179: ／ | X179: ■ | Y179: m59 | Z179: 3320459005 | AA179: 奥玉 | AB179: 450 | AC179: 0 | AE179: ■ | AF179: m04 | AG179: 3320459006 | AH179: Sa玉原 | AI179: 50 | AJ179: 0 | AN179: 3320459005 | AO179: Sa奥玉 | AP179: ／ | BL179: =IF(COUNTIF(AC180,{">0","<0"}),0,COUNTIF(AJ179,{">0","<0"})) -> 0
A180: A | L180: 3320459006 | M180: Sa玉原 | N180: ／ | X180: ■ | Y180: m59 | Z180: 3320459006 | AA180: 玉原 | AB180: 650 | AC180: 0 | AE180: ■ | AF180: m04 | AG180: 3320459009 | AH180: Sa和田日比 | AI180: 50 | AJ180: 0 | AN180: 3320459006 | AO180: Sa玉原 | AP180: ／ | BL180: =IF(COUNTIF(AC181,{">0","<0"}),0,COUNTIF(AJ180,{">0","<0"})) -> 0
A181: A | L181: 3320459009 | M181: Sa和田日比 | N181: ／ | X181: ■ | Y181: m59 | Z181: 3320459009 | AA181: 和田日比 | AB181: 1300 | AC181: 0 | AG181: 3320459012 | AH181: Sa八浜 | AI181: ／ | AN181: 3320459009 | AO181: Sa和田日比 | AP181: ／
A182: A | L182: 3320459012 | M182: Sa八浜 | N182: ／ | X182: ■ | Y182: m59 | Z182: 3320459012 | AA182: 八浜 | AB182: 2150 | AC182: 0 | AG182: 3320459013 | AH182: Sa荘内 | AI182: ／ | AN182: 3320459012 | AO182: Sa八浜 | AP182: ／
A183: A | L183: 3320459013 | M183: Sa荘内 | N183: ／ | X183: ■ | Y183: m59 | Z183: 3320459013 | AA183: 荘内 | AB183: 1350 | AC183: 0 | AN183: 3320459013 | AO183: Sa荘内 | AP183: ／
A184: A
A185: A
A186: X | F186: 小 計 | G186: =SUM(G175:G184) -> 2100 | H186: =SUM(H175:H184) -> 0 | M186: 小 計 | N186: =SUM(N175:N184) -> 0 | O186: =SUM(O175:O184) -> 0 | T186: 小 計 | U186: =SUM(U175:U184) -> 0 | V186: =SUM(V175:V184) -> 0 | AA186: 小 計 | AB186: =SUM(AB175:AB184) -> 8900 | AC186: =SUM(AC175:AC184) -> 0 | AH186: 小 計 | AI186: =SUM(AI175:AI184) -> 450 | AJ186: =SUM(AJ175:AJ184) -> 0 | AO186: 産 経 小 計 | AP186: =SUM(AP175:AP184) -> 0 | AQ186: =SUM(AQ175:AQ184) -> 0
A187: X
A188: X
A189: X | AL189: 【 m63 四 国 】
A190: A | AL190: ■ | AM190: m63 | AN190: 3736063001 | AO190: 直島町 | AP190: 500 | AQ190: 0
A191: A
A192: A
A193: X | B193: =SUM(G186,N186,U186,AP186,AB186,AI186,AP193) -> 11950 | AO193: 四 国 小 計 | AP193: =SUM(AP190) -> 500 | AQ193: =SUM(AQ190) -> 0 | AT193: =SUM(AW193:BC193) -> 0 | AU193: =SUM(BE193:BL193) -> 0 | BE193: =COUNTIF(BE175,{">0","<0"}) -> 0 | BF193: =COUNTIF(O175,{">0","<0"}) -> 0 | BG193: =COUNTIF(V175:V179,{">0","<0"}) -> 0 | BH193: =SUM(COUNTIF(AC177:AC183,{">0","<0"}),COUNTIF(BH175,{">0","<0"})) -> 0 | BK193: =COUNTIF(AQ190,{">0","<0"}) -> 0 | BL193: =SUM(BL175:BL183) -> 0
A194: X
A195: X
A196: X
A197: X
A198: X
A199: X
A200: X
... 472 more rows
